bitfinex-derivatives/quotes_ETHF0:USTF0_20251103
["timestamp","ask_amount","ask_price","bid_price","bid_amount"]
[1762167708653,1.3374,3689.0,3688.5,0.00209869]
[1762167708860,3.2078,3688.7,3688.1,0.48814]
[1762167709262,3.2078,3688.7,3688.2,0.48813]
[1762167709456,3.2078,3688.7,3688.1,0.48815]
[1762167709658,3.2078,3688.7,3688.0,3.2078]
[1762167709860,3.2078,3688.7,3688.0,3.21010479]
[1762167710061,0.00350345,3689.4,3689.3,0.48799]
[1762167711359,3.2078,3690.4,3690.3,0.48786]
[1762167712065,3.2078,3690.8,3689.8,4.42758]
[1762167712265,1.38510082,3690.5,3690.3,0.48786]
[1762167712763,1.38510082,3690.5,3690.3,0.48785]
[1762167712962,0.00300082,3690.5,3690.3,0.48785]
[1762167713562,8.2e-07,3690.5,3690.3,0.48785]
[1762167713762,1.3374,3692.0,3691.5,0.48769]
[1762167713965,3.2078,3691.8,3691.5,0.48769]
[1762167714158,3.2078,3691.6,3690.5,3.2078]
[1762167714460,4.5452,3692.0,3691.1,0.48775]
[1762167714760,3.2078,3691.6,3691.1,0.00311957]
[1762167714968,3.2078,3691.7,3691.1,0.00311957]
[1762167715361,1.34007973,3692.0,3691.7,0.48766]
[1762167715665,1.34007973,3692.0,3691.8,0.48765]
[1762167716164,1.34007973,3692.0,3691.1,3.21091957]
[1762167716769,0.00267973,3692.0,3691.8,0.48765]
[1762167717065,1.3374,3693.0,3691.9,6.7712]
[1762167717256,4.5452,3694.0,3692.9,1.21879]
[1762167717560,4.5452,3694.0,3692.8,3.2078]
[1762167717759,3.2078,3693.6,3693.4,0.48744]
[1762167717961,0.025,3694.7,3693.3,3.2078]
[1762167718268,0.02737629,3694.7,3694.5,0.48729]
[1762167718462,0.02737629,3694.7,3694.5,0.4907287]
[1762167718961,0.02737629,3694.7,3694.5,0.0034387]
[1762167719155,0.02737629,3694.7,3693.6,0.48741]
[1762167719156,14.79377629,3694.7,3693.6,0.48741]
[1762167719365,1.3374,3693.8,3693.3,17.0698]
[1762167719561,1.3374,3693.8,3693.5,0.48743]
[1762167719861,1.3374,3693.8,3692.5,40.8]
[1762167719862,3.2078,3693.6,3692.7,3.2078]
[1762167720159,3.2078,3692.8,3692.3,3.2078]
[1762167720364,3.2078,3692.8,3692.7,0.00257787]
[1762167720560,1.3374,3693.8,3692.7,44.01037787]
[1762167720766,1.3374,3693.8,3693.4,0.48745]
[1762167720966,3.2078,3694.3,3693.9,0.48739]
[1762167721166,3.2078,3694.3,3694.1,0.48736]
[1762167721362,3.23517629,3694.7,3694.3,0.48733]
[1762167721560,3.23517629,3694.7,3693.6,3.69522]
[1762167721762,3.2078,3694.3,3693.1,3.2078]
[1762167721961,3.2078,3694.3,3692.7,40.80257787]
[1762167721962,3.2078,3693.5,3692.7,44.01037787]
[1762167722262,1.3374,3693.8,3692.7,45.22924787]
[1762167722463,4.5452,3693.8,3693.4,0.48745]
[1762167722663,4.5452,3693.8,3692.7,44.01037787]
[1762167722870,4.5452,3693.8,3693.6,0.48743]
[1762167723068,1.3374,3693.8,3693.6,0.48743]
[1762167723569,3.23517629,3694.7,3694.5,0.48731]
[1762167723760,3.23517629,3694.7,3694.0,3.2078]
[1762167723966,3.23517629,3694.7,3694.5,0.48731]
[1762167724360,3.23517629,3694.7,3694.3,0.48734]
[1762167724559,3.23517629,3694.7,3694.0,3.2078]
[1762167724763,3.23517629,3694.7,3694.5,0.48731]
[1762167724964,3.23517629,3694.7,3694.2,0.48735]
[1762167725159,3.23517629,3694.7,3694.0,3.2078]
[1762167725567,3.2078,3694.2,3693.7,0.48742]
[1762167725871,3.2078,3694.2,3693.8,0.4874]
[1762167726062,3.2078,3694.2,3694.0,0.48738]
[1762167726267,3.2078,3694.2,3693.8,0.4874]
[1762167726469,3.2078,3694.2,3693.6,3.2078]
[1762167726664,3.2078,3694.2,3694.0,0.48738]
[1762167727271,3.2078,3694.2,3693.6,3.2078]
[1762167727471,3.2078,3694.2,3694.0,0.48738]
[1762167727775,3.2078,3694.2,3693.2,3.2078]
[1762167727978,1.3374,3694.0,3693.2,3.2078]
[1762167728173,3.2078,3693.6,3692.8,3.2078]
[1762167728370,1.3374,3694.0,3693.3,0.48747]
[1762167728570,3.2078,3693.4,3693.0,0.48751]
[1762167728771,3.2078,3693.4,3692.8,0.48753]
[1762167728977,1.3374,3694.0,3692.6,0.48756]
[1762167728978,4.5452,3693.0,3692.6,0.48756]
[1762167729177,4.5452,3693.0,3692.8,0.48754]
[1762167729771,4.5452,3693.0,3692.4,3.2078]
[1762167729772,4.5452,3693.0,3692.7,0.49012787]
[1762167729972,4.5452,3693.0,3692.8,0.48754]
[1762167730171,1.3374,3694.0,3693.7,0.48742]
[1762167730172,3.2078,3693.8,3693.7,0.48742]
[1762167730377,1.3374,3694.0,3693.9,0.4874]
[1762167731274,3.2078,3694.6,3694.5,0.48732]
[1762167731671,0.02737629,3694.7,3694.5,3.69512]
[1762167731874,0.02737629,3694.7,3694.5,0.48732]
[1762167732179,0.02737629,3694.7,3694.5,3.69512]
[1762167732473,7.6928,3692.9,3686.9,3.2078]
[1762167732674,3.2078,3687.0,3685.8,1.313]
[1762167732977,12.19902,3689.7,3686.0,1.4283]
[1762167733275,0.48809,3688.7,3686.0,1.4283]
[1762167733479,5.8267,3690.0,3686.4,0.48838]
[1762167733480,1.3417,3690.0,3686.4,0.48838]
[1762167733675,1.3417,3690.0,3686.4,0.00295026]
[1762167733676,0.48803,3689.1,3686.4,0.00295026]
[1762167733876,1.34497124,3690.0,3686.5,0.48837]
[1762167734080,3.2078,3688.5,3686.9,3.2078]
[1762167734280,3.2078,3688.0,3687.0,13.005]
[1762167734481,3.2078,3687.6,3687.0,13.005]
[1762167734688,3.2078,3687.1,3687.0,13.005]
[1762167734877,3.21107568,3687.1,3687.0,27.895]
[1762167735183,3.21107568,3687.1,3687.0,13.005]
[1762167735384,3.21107568,3687.1,3687.0,27.888]
[1762167735781,3.21107568,3687.1,3687.0,13.005]
[1762167736082,3.21107568,3687.1,3687.0,27.854]
[1762167736477,3.21107568,3687.1,3687.0,27.853]
[1762167736677,3.21107568,3687.1,3687.0,13.005]
[1762167737082,3.21107568,3687.1,3687.0,27.83]
[1762167737277,3.21107568,3687.1,3687.0,27.82]
[1762167737582,3.21107568,3687.1,3687.0,27.809]
[1762167738681,3.21107568,3687.1,3687.0,13.005]
[1762167738880,3.21107568,3687.1,3687.0,27.755]
[1762167739685,3.21107568,3687.1,3687.0,27.756]
[1762167739886,3.21107568,3687.1,3687.0,27.734]
[1762167740086,3.2078,3688.1,3687.0,31.43011]
[1762167740787,3.2078,3688.1,3687.1,40.8]
[1762167740987,3.21083593,3688.1,3687.1,40.8]
[1762167741174,3.21083593,3688.1,3687.2,14.676]
[1762167741376,3.21083593,3688.1,3687.3,14.676]
[1762167741579,3.21083593,3688.1,3687.1,40.8]
[1762167741780,3.21083593,3688.1,3687.2,14.676]
[1762167742284,3.21083593,3688.1,3687.3,14.666]
[1762167742487,3.21083593,3688.1,3687.1,41.28828]
[1762167742488,0.00303593,3688.1,3687.6,4.6361]
[1762167742683,3.2078,3688.5,3687.7,17.8308]
[1762167743587,3.21007143,3688.5,3687.7,17.8308]
[1762167744189,0.00227143,3688.5,3687.7,17.8308]
[1762167744390,0.00227143,3688.5,3687.7,18.31901]
[1762167744792,0.00227143,3688.5,3687.7,17.8308]
[1762167745290,0.00227143,3688.5,3688.3,1.3757]
[1762167747089,0.4882,3687.8,3687.6,1.4283]
[1762167747388,3.2078,3688.4,3687.7,14.94921]
[1762167747592,0.00227143,3688.5,3688.3,1.3757]
[1762167747789,0.00227143,3688.5,3688.4,3.2078]
[1762167748193,0.00227143,3688.5,3688.3,1.3757]
[1762167748692,0.00227143,3688.5,3688.4,14.437]
[1762167748888,0.00227143,3688.5,3688.3,1.3757]
[1762167749093,0.49039143,3688.5,3688.4,14.406]
[1762167749294,0.49039143,3688.5,3688.3,1.3757]
[1762167749593,0.00227143,3688.5,3688.4,14.4]
[1762167749788,0.00227143,3688.5,3688.3,1.3757]
[1762167749789,0.49038143,3688.5,3688.3,1.3757]
[1762167749989,0.49038143,3688.5,3688.4,14.371]
[1762167750293,0.48815,3688.2,3687.3,44.0078]
[1762167750495,0.48817,3688.1,3687.4,14.372]
[1762167750799,0.48818,3688.0,3687.4,14.372]
[1762167751000,0.00227143,3688.5,3687.3,3.2078]
[1762167751001,3.2078,3688.4,3687.3,3.2078]
[1762167751296,1.22037,3688.2,3687.2,1.3757]
[1762167751497,0.48825,3687.5,3687.3,14.323]
[1762167751701,0.48827,3687.4,3687.2,42.1757]
[1762167751999,0.48829,3687.2,3687.0,13.005]
[1762167752196,0.48829,3687.2,3687.1,14.299]
[1762167752998,0.48829,3687.2,3687.0,13.005]
[1762167753199,0.48829,3687.2,3687.1,14.27]
[1762167753898,0.48829,3687.2,3687.0,13.005]
[1762167754101,0.48829,3687.2,3687.1,14.26]
[1762167754294,0.48829,3687.2,3687.1,14.231]
[1762167754898,0.48829,3687.2,3687.0,13.005]
[1762167755101,0.48829,3687.2,3687.1,14.211]
[1762167755494,3.69608,3687.3,3687.1,14.211]
[1762167755997,0.4883,3687.1,3687.0,14.3807]
[1762167756194,0.4883,3687.1,3687.0,13.005]
[1762167756503,0.4883,3687.1,3687.0,27.17]
[1762167756703,0.4883,3687.1,3687.0,13.005]
[1762167757004,12.20925,3686.7,3684.0,1.3757]
[1762167757299,3.69631,3685.5,3684.7,3.2078]
[1762167757504,0.48853,3685.4,3684.7,3.2078]
[1762167757692,0.48856,3685.2,3685.0,1.3757]
[1762167757996,3.2078,3685.1,3685.0,0.00262841]
[1762167758397,3.2078,3685.1,3685.0,14.14262841]
[1762167758598,3.2078,3685.1,3685.0,14.13262841]
[1762167758790,3.2078,3685.1,3685.0,0.00262841]
[1762167759194,3.2078,3685.1,3685.0,14.12262841]
[1762167759398,0.00222986,3685.2,3685.0,15.49832841]
[1762167760597,3.11479776,3685.5,3685.0,1.37832841]
[1762167760903,3.2078,3686.0,3685.1,14.57056]
[1762167761105,3.2078,3686.0,3685.2,0.48855]
[1762167761600,3.69881969,3686.0,3685.3,6.7832]
[1762167761803,3.69881969,3686.0,3685.2,0.48854]
[1762167762105,3.69881969,3686.0,3685.1,14.082]
[1762167762106,0.48847,3685.9,3685.3,6.7832]
[1762167762305,0.48847,3685.9,3685.1,14.57056]
[1762167762500,0.48848,3685.8,3685.1,14.57056]
[1762167762699,0.48848,3685.8,3685.2,0.48855]
[1762167762899,3.21036969,3686.0,3685.2,0.48855]
[1762167763100,3.21036969,3686.0,3685.3,6.7832]
[1762167763405,3.21036969,3686.0,3685.4,0.48852]
[1762167763799,0.00256969,3686.0,3685.8,3.2078]
[1762167763999,3.2078,3686.7,3686.3,0.4884]
[1762167764200,3.2078,3687.5,3687.0,1.319]
[1762167764509,3.696,3687.9,3687.1,3.2078]
[1762167764805,0.64178353,3687.8,3687.1,3.2078]
[1762167765010,0.00322843,3687.8,3687.2,40.8]
[1762167765797,0.49143843,3687.8,3687.2,40.8]
[1762167765996,0.00322843,3687.8,3687.3,13.901]
[1762167766202,0.00322843,3687.8,3687.5,3.2078]
[1762167766702,0.49143843,3687.8,3687.5,3.2078]
[1762167767402,0.00322843,3687.8,3687.5,3.2078]
[1762167769109,0.00322843,3687.8,3687.5,3.69605]
[1762167769511,0.49144843,3687.8,3687.5,3.2078]
[1762167769906,0.48824,3687.6,3687.5,3.2078]
[1762167770113,0.48825,3687.6,3687.5,13.77]
[1762167770705,3.2078,3688.8,3688.2,1.319]
[1762167770907,3.2078,3689.2,3688.5,3.2078]
[1762167771107,0.48808,3688.8,3688.5,3.2078]
[1762167771307,0.48806,3689.0,3688.5,3.2078]
[1762167771503,3.2078,3689.2,3688.5,3.2078]
[1762167771713,0.0031165,3689.2,3689.1,1.319]
[1762167771908,0.0031165,3689.2,3689.1,15.06]
[1762167772614,3.6957,3690.2,3689.2,0.48802]
[1762167772812,3.2078,3690.2,3690.0,1.319]
[1762167773114,3.2078,3690.2,3690.1,13.691]
[1762167773605,3.21088896,3690.2,3690.1,13.691]
[1762167774208,0.00308896,3690.2,3690.1,13.691]
[1762167775311,0.00308896,3690.2,3690.0,1.319]
[1762167775513,0.00308896,3690.2,3690.1,13.612]
[1762167776112,3.2078,3690.6,3690.4,0.48786]
[1762167776314,3.2078,3690.6,3690.1,13.612]
[1762167776315,3.2078,3690.6,3690.5,13.018]
[1762167777116,3.21045102,3690.6,3690.5,13.018]
[1762167777711,0.00265102,3690.6,3690.5,13.018]
[1762167778017,3.2078,3691.1,3690.5,26.558]
[1762167778817,3.2101023,3691.1,3690.5,26.558]
[1762167779021,0.0023023,3691.1,3690.9,1.319]
[1762167779921,3.2101023,3691.1,3690.5,13.018]
[1762167780216,3.69563,3690.7,3690.5,13.018]
[1762167780413,4.42738,3690.7,3689.2,3.2078]
[1762167780612,4.42738,3690.7,3689.3,26.481]
[1762167780613,3.2078,3689.9,3689.3,26.481]
[1762167780822,3.69573,3689.9,3689.3,26.481]
[1762167781023,3.2078,3689.9,3689.3,26.481]
[1762167781214,3.69574,3689.9,3689.1,42.119]
[1762167781418,0.48795,3689.8,3689.1,42.119]
[1762167781724,0.48801,3689.3,3689.2,13.014]
[1762167781911,3.2078,3689.4,3689.2,26.454]
[1762167782112,3.2078,3689.4,3689.3,13.433]
[1762167782420,0.48804,3689.1,3688.5,0.00250349]
[1762167782620,0.4881,3688.7,3688.5,13.01650349]
[1762167782826,3.2078,3688.6,3688.5,0.00250349]
[1762167783026,3.2078,3688.6,3688.5,13.40650349]
[1762167783916,3.2078,3689.0,3688.5,0.00250349]
[1762167784115,3.2078,3689.0,3688.5,13.38950349]
[1762167784313,3.2078,3688.6,3687.1,3.2078]
[1762167784512,3.2078,3687.9,3687.4,13.37]
[1762167784713,3.2078,3687.9,3687.3,1.319]
[1762167784930,3.2078,3687.5,3687.4,13.348]
[1762167785319,3.21039544,3687.5,3687.4,13.35110882]
[1762167785518,3.2078,3687.9,3687.5,0.48824]
[1762167785817,3.2078,3688.8,3688.2,1.319]
[1762167786017,3.2078,3688.8,3688.3,13.333]
[1762167786417,3.2078,3688.4,3688.3,13.333]
[1762167786621,3.21061958,3688.4,3688.2,1.319]
[1762167786823,3.21061958,3688.4,3688.3,13.317]
[1762167787023,3.69874958,3688.4,3687.4,3.21090882]
[1762167787224,0.48815,3688.2,3687.4,3.21090882]
[1762167787424,0.48815,3688.2,3687.5,26.304]
[1762167788018,3.69874958,3688.4,3687.5,26.304]
[1762167788220,3.69874958,3688.4,3687.4,3.69915882]
[1762167788428,0.48814,3688.3,3687.5,26.296]
[1762167788927,3.69599,3688.0,3687.4,3.21090882]
[1762167789125,3.2078,3688.0,3687.5,26.28]
[1762167789322,3.2078,3688.0,3687.4,3.21090882]
[1762167789527,3.69604,3687.6,3687.5,13.234]
[1762167789724,0.48821,3687.8,3687.5,13.234]
[1762167789919,3.2078,3688.0,3687.5,13.72223]
[1762167790119,3.2078,3688.0,3687.5,13.234]
[1762167790316,0.7483,3690.0,3688.2,1.319]
[1762167790317,3.2078,3688.7,3688.2,1.319]
[1762167790527,3.2078,3690.0,3688.6,3.2078]
[1762167790724,0.48793,3689.9,3689.2,3.2078]
[1762167791228,3.2078,3690.0,3689.2,3.2078]
[1762167791532,0.49128161,3689.9,3689.2,3.2078]
[1762167791730,0.48794,3689.8,3689.2,3.2078]
[1762167792124,0.00335161,3689.9,3689.2,3.2078]
[1762167792726,0.48795,3689.8,3689.1,1.319]
[1762167793031,0.00335161,3689.9,3689.2,3.2078]
[1762167793625,0.00335161,3689.9,3689.2,3.69581]
[1762167793826,0.00335161,3689.9,3689.2,3.2078]
[1762167794732,0.00335161,3689.9,3689.3,13.174]
[1762167795532,0.00335161,3689.9,3689.3,13.662]
[1762167795730,0.00335161,3689.9,3689.3,13.174]
[1762167796432,0.00335161,3689.9,3689.6,4.6206]
[1762167796729,0.00335161,3689.9,3688.8,1.4128]
[1762167796730,1.21992,3689.6,3688.7,3.2078]
[1762167796931,0.48805,3689.0,3688.8,13.062]
[1762167797431,0.00335161,3689.9,3689.6,1.90076]
[1762167797632,0.00335161,3689.9,3689.7,13.54495]
[1762167797831,0.00335161,3689.9,3689.7,13.54494]
[1762167798628,3.69558,3691.0,3690.2,0.48788]
[1762167798831,3.69559,3691.0,3690.2,3.2078]
[1762167799139,0.48779,3690.9,3690.2,3.69568]
[1762167799626,0.48783,3690.7,3690.2,3.21035975]
[1762167799831,0.48975551,3690.9,3690.2,3.21035975]
[1762167800032,0.00195551,3690.9,3690.7,0.48781]
[1762167800224,0.00195551,3690.9,3690.8,16.2258]
[1762167800630,3.2078,3691.5,3691.2,1.90055]
[1762167800834,3.2078,3691.9,3691.3,0.48774]
[1762167801032,3.2078,3691.9,3691.2,1.4128]
[1762167801627,3.21118543,3691.9,3691.2,1.4128]
[1762167801828,3.69884543,3691.9,3691.2,4.6206]
[1762167802030,3.21118543,3691.9,3691.2,5.10834]
[1762167802231,3.21118543,3691.9,3691.3,0.48774]
[1762167802534,3.21118543,3691.9,3691.2,4.6206]
[1762167802836,0.48769,3691.7,3691.3,12.922]
[1762167803032,0.4877,3691.6,3691.2,4.6206]
[1762167803242,3.21118543,3691.9,3691.3,12.898]
[1762167803430,0.4877,3691.6,3691.3,12.898]
[1762167804637,3.21118543,3691.9,3691.3,12.898]
[1762167805029,0.00338543,3691.9,3691.7,0.48768]
[1762167807333,3.2078,3693.9,3692.0,1.3123]
[1762167807539,3.2078,3693.9,3693.2,0.48748]
[1762167807741,3.2078,3693.9,3693.3,13.27647]
[1762167808038,3.2078,3694.4,3693.4,3.2078]
[1762167808338,0.00206596,3694.4,3693.8,3.6952]
[1762167808734,0.00206596,3694.4,3694.2,3.2078]
[1762167808929,0.00206596,3694.4,3694.3,12.774]
[1762167812638,0.025,3694.7,3694.4,1.373]
[1762167812836,3.2078,3695.7,3694.6,3.2078]
[1762167813034,3.2078,3695.7,3695.0,3.2078]
[1762167813237,0.48719,3695.5,3695.1,12.705]
[1762167813838,3.2078,3695.3,3695.2,12.705]
[1762167814040,3.2078,3695.3,3694.4,3.2078]
[1762167814236,3.2078,3695.3,3694.5,12.705]
[1762167814639,0.48725,3695.0,3694.5,12.705]
[1762167814941,3.2078,3695.3,3694.5,12.705]
[1762167815441,0.48727,3694.9,3694.5,12.705]
[1762167815739,0.48726,3694.9,3694.5,12.705]
[1762167815938,0.48721,3695.3,3694.8,3.2078]
[1762167816135,0.00289919,3695.5,3694.8,3.2078]
[1762167816343,1.2177,3696.4,3694.5,12.705]
[1762167816344,3.2078,3696.2,3695.4,3.2078]
[1762167816640,3.2078,3696.2,3695.2,2.59106]
[1762167816641,0.48706,3696.5,3695.8,3.2078]
[1762167817136,3.2078,3696.6,3695.8,3.2078]
[1762167817137,3.2078,3696.6,3696.1,0.4871]
[1762167817342,0.00271722,3696.6,3696.5,2.3666]
[1762167817542,0.00271722,3696.6,3696.5,12.7]
[1762167818437,0.00271722,3696.6,3696.3,3.2078]
[1762167818640,0.48707,3696.4,3696.1,0.00260526]
[1762167818834,14.6064,3697.9,3696.1,0.00260526]
[1762167818835,3.2078,3698.3,3697.6,1.373]
[1762167819035,0.4867,3699.2,3698.1,3.2078]
[1762167819243,3.2078,3699.4,3698.6,3.2078]
[1762167819244,0.48676,3698.7,3698.6,3.2078]
[1762167819546,1.3326,3699.0,3698.2,15.9048]
[1762167819745,0.2705,3698.3,3698.2,15.9048]
[1762167820144,3.2078,3698.3,3698.2,15.9048]
[1762167820343,3.69462,3698.3,3698.2,15.9048]
[1762167820555,3.69462,3698.3,3698.2,15.9028]
[1762167820735,1.33511966,3699.0,3698.2,15.9028]
[1762167820942,0.00251966,3699.0,3698.9,3.2078]
[1762167821134,2.93981966,3699.0,3698.9,3.21097717]
[1762167821548,3.21031966,3699.0,3698.9,3.21097717]
[1762167821744,9.66321966,3699.0,3698.9,12.69617717]
[1762167822241,9.66321966,3699.0,3698.9,12.69417717]
[1762167822543,0.2705,3699.3,3698.9,44.01097717]
[1762167822752,1.88710171,3702.5,3701.7,3.2078]
[1762167823045,1.3902,3703.5,3702.4,3.2078]
[1762167823248,0.48626,3702.5,3702.4,2.58429207]
[1762167823444,3.2078,3703.1,3702.4,2.48295345]
[1762167823644,0.48626,3702.6,3702.4,2.48560486]
[1762167824642,0.00325479,3703.1,3702.4,2.48560486]
[1762167824842,0.48944479,3703.1,3702.9,3.2078]
[1762167825546,0.48944479,3703.1,3703.0,7.45]
[1762167825749,0.00325479,3703.1,3703.0,7.45]
[1762167826140,0.00325479,3703.1,3703.0,12.684]
[1762167826345,0.4862,3703.0,3702.9,3.2078]
[1762167826547,0.00325479,3703.1,3702.9,3.2078]
[1762167826751,3.2078,3704.1,3702.9,3.2078]
[1762167826752,0.48606,3704.1,3702.9,3.2078]
[1762167826944,0.48604,3704.3,3704.0,3.2078]
[1762167827140,0.48604,3704.3,3704.1,12.683]
[1762167827339,12.32541866,3706.1,3704.1,12.683]
[1762167827340,4.598,3705.3,3704.1,12.683]
[1762167827550,0.48597,3704.8,3704.5,3.2078]
[1762167827752,0.00348541,3704.7,3704.5,3.2078]
[1762167828054,3.2078,3706.8,3704.6,7.23399]
[1762167828248,1.3902,3707.0,3705.9,3.2078]
[1762167828440,0.6641168,3707.6,3706.7,3.2078]
[1762167828750,0.48559,3707.7,3707.5,3.2078]
[1762167828957,0.48571,3706.8,3706.7,3.2078]
[1762167829159,0.00286354,3706.8,3706.7,3.2109007]
[1762167829562,0.00286354,3706.8,3706.7,11.3149007]
[1762167830361,0.00286354,3706.8,3706.7,15.8829007]
[1762167830756,0.00286354,3706.8,3706.7,3.2109007]
[1762167830963,0.00286354,3706.8,3706.7,0.0031007]
[1762167830964,1.39306354,3706.8,3706.7,0.0031007]
[1762167831360,1.39306354,3706.8,3706.7,3.2109007]
[1762167831562,9.39306354,3706.8,3706.7,3.2109007]
[1762167831759,0.48582,3705.9,3705.8,3.2078]
[1762167831962,0.4859,3705.3,3705.2,3.2078]
[1762167832259,2.60477,3705.9,3703.0,1.3288]
[1762167832260,0.48592,3705.2,3704.9,12.667]
[1762167832458,0.48593,3705.1,3704.9,12.667]
[1762167832660,0.48593,3705.1,3704.9,12.66920558]
[1762167832964,1.3902,3705.9,3704.9,0.00220558]
[1762167833361,0.48586,3705.7,3705.5,3.2078]
[1762167833763,0.48586,3705.7,3705.5,2.58945134]
[1762167833764,8.48586,3705.7,3705.5,2.58945134]
[1762167833963,0.48594,3705.0,3704.9,0.00220558]
[1762167834162,0.48593,3705.1,3704.9,0.00220558]
[1762167835571,0.48595,3704.9,3704.8,2.55662558]
[1762167835767,0.48603,3704.3,3704.2,3.2078]
[1762167836072,0.48602,3704.4,3704.2,3.2078]
[1762167836261,3.2078,3705.6,3704.2,3.2078]
[1762167836462,0.48588,3705.5,3705.3,3.2078]
[1762167836659,0.48588,3705.5,3705.3,3.21008327]
[1762167837272,0.4858,3706.1,3705.3,3.21008327]
[1762167837472,1.39306354,3706.8,3705.8,3.2078]
[1762167837769,0.48572,3706.7,3706.2,3.2078]
[1762167837973,0.00286354,3706.8,3706.2,3.2078]
[1762167838176,0.48857354,3706.8,3706.2,3.2078]
[1762167838376,0.48573,3706.6,3706.2,3.2078]
[1762167838563,0.48572,3706.7,3706.2,3.2078]
[1762167839268,0.00286354,3706.8,3706.6,3.2078]
[1762167839464,0.00286354,3706.8,3706.7,12.656]
[1762167839977,0.00286354,3706.8,3706.5,12.655]
[1762167840276,0.48583,3705.9,3705.8,3.2078]
[1762167840464,0.4858,3706.1,3705.8,15.8608]
[1762167840666,0.48581,3706.0,3705.8,15.8608]
[1762167841075,0.48587,3705.5,3705.3,0.00228327]
[1762167841375,3.2078,3705.4,3705.3,0.00228327]
[1762167841571,3.2078,3705.4,3704.2,3.2078]
[1762167841572,0.48603,3704.3,3704.2,3.2078]
[1762167841771,1.21497,3704.7,3703.8,3.2078]
[1762167841979,0.48608,3703.9,3703.8,3.2078]
[1762167842479,0.48800753,3703.9,3703.8,3.21104952]
[1762167842881,0.4862,3703.0,3702.9,3.2078]
[1762167843172,0.00192753,3703.9,3702.9,3.2078]
[1762167843368,1.21525,3703.8,3703.4,3.2078]
[1762167843564,1.21525,3703.8,3703.0,3.2078]
[1762167843565,1.3902,3703.7,3703.0,3.2078]
[1762167843768,0.48619,3703.1,3703.0,3.2078]
[1762167843971,0.48619,3703.1,3703.0,0.00247963]
[1762167844375,0.00192753,3703.9,3703.0,3.21027963]
[1762167844676,0.00192753,3703.9,3703.4,3.2078]
[1762167844677,0.48612,3703.6,3703.4,3.2078]
[1762167845266,0.48618,3703.1,3703.0,0.00247963]
[1762167845978,0.48625,3702.6,3702.5,3.2078]
[1762167846279,0.48629,3702.3,3702.1,3.2078]
[1762167846570,0.48629,3702.3,3700.3,1.21636]
[1762167846571,0.48636,3701.8,3701.7,3.2078]
[1762167846971,1.3902,3702.6,3701.7,3.21098947]
[1762167847179,1.3902,3702.6,3701.7,0.00318947]
[1762167847378,1.3902,3702.6,3702.1,3.2078]
[1762167847572,1.3902,3703.7,3702.5,3.2078]
[1762167847878,0.48619,3703.1,3703.0,3.2078]
[1762167848081,1.87632,3703.7,3703.0,3.2078]
[1762167848375,0.00192753,3703.9,3702.7,12.644]
[1762167848376,0.48612,3703.6,3703.4,3.2078]
[1762167849082,1.2154,3703.3,3701.9,12.643]
[1762167849375,3.2078,3703.2,3702.1,3.2078]
[1762167849876,0.48619,3703.1,3702.7,3.2078]
[1762167850075,0.48613,3703.6,3702.7,3.2078]
[1762167850274,0.48613,3703.5,3703.1,3.2078]
[1762167850474,3.2078,3703.7,3703.1,3.2078]
[1762167850475,3.69391,3703.7,3703.1,3.2078]
[1762167850777,0.00192753,3703.9,3703.6,3.2078]
[1762167850778,0.4861,3703.8,3703.6,3.2078]
[1762167850979,0.00192753,3703.9,3702.7,3.2078]
[1762167851173,0.48617,3703.2,3702.7,3.2078]
[1762167851378,1.21526,3703.7,3702.7,3.2078]
[1762167851578,1.21526,3703.7,3702.8,12.64]
[1762167851774,3.20972753,3703.9,3702.7,3.2078]
[1762167851775,1.21523,3703.8,3702.7,3.2078]
[1762167851975,0.48621,3702.9,3702.7,3.2078]
[1762167852277,0.48627,3702.5,3702.1,15.8468]
[1762167852469,3.2078,3703.0,3702.2,3.2078]
[1762167852679,3.2078,3702.8,3702.2,3.2078]
[1762167852975,3.2078,3703.0,3702.2,3.2078]
[1762167853179,0.48626,3702.6,3702.2,3.2078]
[1762167853375,3.694,3703.0,3702.2,3.2078]
[1762167853575,1.3183,3703.7,3702.7,3.2078]
[1762167853576,4.5261,3703.7,3702.7,3.2078]
[1762167853777,3.2078,3703.7,3702.7,3.2078]
[1762167853976,0.48622,3702.8,3702.7,3.2078]
[1762167854675,0.48631,3702.2,3702.0,3.2078]
[1762167854984,3.2078,3702.8,3702.0,3.2078]
[1762167856086,0.48629,3702.3,3702.0,3.2078]
[1762167856379,3.2078,3703.3,3702.0,3.2078]
[1762167856676,3.2078,3703.3,3702.6,3.2078]
[1762167857082,1.21542,3703.2,3702.2,12.632]
[1762167857282,1.21542,3703.2,3702.1,3.2078]
[1762167857585,0.48625,3702.6,3702.2,12.632]
[1762167857785,0.48626,3702.5,3702.2,12.632]
[1762167858083,0.48626,3702.6,3702.2,12.632]
[1762167858283,0.48626,3702.5,3702.2,12.632]
[1762167858784,3.2078,3703.3,3702.2,12.632]
[1762167858983,0.4863,3702.2,3701.9,0.70285173]
[1762167859173,3.2078,3703.0,3701.7,3.9138412]
[1762167859381,1.21553,3702.9,3701.7,3.9138412]
[1762167859581,1.21553,3702.9,3702.1,3.2078]
[1762167859778,0.48627,3702.4,3702.1,3.2078]
[1762167860281,1.21553,3702.9,3702.1,3.2078]
[1762167860486,0.48629,3702.3,3702.1,3.2078]
[1762167861192,0.48635,3701.9,3701.7,0.00318947]
[1762167861680,8.0,3701.8,3701.7,9.47e-06]
[1762167861884,14.7536,3701.8,3701.7,9.47e-06]